bitfinex/quotes_BTCUSD_20241103
["timestamp","ask_amount","ask_price","bid_price","bid_amount"]
[1730651560227,0.72158482,68286.0,68285.0,0.00638537]
[1730651560447,0.72158482,68286.0,68285.0,0.00720537]
[1730651560448,0.60175145,68286.0,68285.0,0.00720537]
[1730651560672,0.59975145,68286.0,68285.0,0.00720537]
[1730651560882,0.56275145,68286.0,68285.0,0.00720537]
[1730651561063,0.57675145,68286.0,68285.0,0.00720537]
[1730651561550,0.57175145,68286.0,68285.0,0.00720537]
[1730651561768,0.57675145,68286.0,68285.0,0.00720537]
[1730651562205,0.59975145,68286.0,68285.0,0.00720537]
[1730651562424,0.58575145,68286.0,68285.0,0.00720537]
[1730651562656,0.59975145,68286.0,68285.0,0.00720537]
[1730651562865,0.61375145,68286.0,68285.0,0.00720537]
[1730651563075,0.59975145,68286.0,68285.0,0.00720537]
[1730651563713,0.62209819,68286.0,68285.0,0.00720537]
[1730651564560,0.59409819,68286.0,68285.0,0.00720537]
[1730651565206,0.59909819,68286.0,68285.0,0.00720537]
[1730651565418,0.59409819,68286.0,68285.0,0.00720537]
[1730651565625,0.34330115,68286.0,68285.0,0.00720537]
[1730651565810,0.18801415,68286.0,68285.0,0.00720537]
[1730651566265,0.17966741,68286.0,68285.0,0.00720537]
[1730651567464,0.33881819,68286.0,68285.0,0.00720537]
[1730651567923,0.46391819,68286.0,68285.0,0.00720537]
[1730651568155,0.73342997,68286.0,68285.0,0.00720537]
[1730651568379,0.73142997,68286.0,68285.0,0.00720537]
[1730651569297,0.73342997,68286.0,68285.0,0.00720537]
[1730651569524,0.73142997,68286.0,68285.0,0.00720537]
[1730651570648,0.73342997,68286.0,68285.0,0.00720537]
[1730651570884,0.73142997,68286.0,68285.0,0.00720537]
[1730651572160,0.58691819,68286.0,68285.0,0.00720537]
[1730651572396,0.59191819,68286.0,68285.0,0.00720537]
[1730651572629,0.23602115,68286.0,68285.0,0.00720537]
[1730651572861,0.18802115,68286.0,68285.0,0.00720537]
[1730651573089,0.18966115,68286.0,68285.0,0.00720537]
[1730651574642,0.1896956,68286.0,68285.0,0.00720537]
[1730651575155,0.18969561,68286.0,68285.0,0.00720537]
[1730651575614,0.17569561,68286.0,68285.0,0.00720537]
[1730651576036,0.36349265,68286.0,68285.0,0.00720537]
[1730651576241,0.3635012,68286.0,68285.0,0.00720537]
[1730651576455,0.47028794,68286.0,68285.0,0.00720537]
[1730651576896,0.45628794,68286.0,68285.0,0.00720537]
[1730651577104,0.47028794,68286.0,68285.0,0.00720537]
[1730651578192,0.5954091,68286.0,68285.0,0.00720537]
[1730651578403,0.146462,68277.0,68264.0,0.21983337]
[1730651578616,0.33587904,68276.0,68271.0,0.21983337]
[1730651578831,0.146485,68267.0,68263.0,0.000828]
[1730651579047,0.30657532,68275.0,68263.0,0.000828]
[1730651579048,0.16012932,68266.0,68263.0,0.000828]
[1730651579267,0.01364332,68265.0,68263.0,0.000828]
[1730651579478,0.01364332,68264.0,68263.0,0.000828]
[1730651579922,0.01364332,68264.0,68263.0,0.14732]
[1730651580375,0.01364332,68264.0,68263.0,0.29311704]
[1730651580991,0.01664332,68264.0,68263.0,0.40311704]
[1730651581421,0.01664332,68264.0,68263.0,0.52781704]
[1730651581631,0.00524743,68264.0,68263.0,0.530989]
[1730651581849,0.23383337,68276.0,68275.0,0.146466]
[1730651582098,0.22811454,68276.0,68275.0,0.44789209]
[1730651582307,0.00828117,68276.0,68275.0,0.49284902]
[1730651582529,0.00828117,68276.0,68275.0,0.49126304]
[1730651582794,0.21983337,68283.0,68282.0,0.256451]
[1730651583000,0.21983337,68283.0,68282.0,0.39224804]
[1730651583206,0.00164,68286.0,68285.0,0.151445]
[1730651583416,0.00164,68286.0,68285.0,0.146445]
[1730651583620,0.00992128,68286.0,68285.0,0.146445]
[1730651583851,0.00992128,68286.0,68285.0,0.151445]
[1730651584062,0.00164,68286.0,68285.0,0.146445]
[1730651584270,0.00992128,68286.0,68285.0,0.146445]
[1730651585098,0.01192128,68286.0,68285.0,0.146445]
[1730651585322,0.01192128,68286.0,68285.0,0.29224204]
[1730651585535,0.01192128,68286.0,68285.0,0.48281138]
[1730651585743,0.01492128,68286.0,68285.0,0.47994204]
[1730651585956,0.01492128,68286.0,68285.0,0.48194204]
[1730651586387,0.01492128,68286.0,68285.0,0.47994204]
[1730651586388,0.00664,68286.0,68285.0,0.47994204]
[1730651586826,0.00464,68286.0,68285.0,0.47994204]
[1730651587443,0.00164,68286.0,68285.0,0.47994204]
[1730651587650,0.00264,68286.0,68285.0,0.47494204]
[1730651587855,0.00364,68286.0,68285.0,0.47994204]
[1730651590509,0.00364,68286.0,68285.0,0.46994204]
[1730651590754,0.00364,68286.0,68285.0,0.39724204]
[1730651591003,0.00364,68286.0,68285.0,0.52085728]
[1730651591218,0.00264,68286.0,68285.0,0.52085728]
[1730651591433,0.00164,68286.0,68285.0,0.52285728]
[1730651591643,0.00264,68286.0,68285.0,0.60055728]
[1730651591860,0.00364,68286.0,68285.0,0.60055728]
[1730651592096,0.00264,68286.0,68285.0,0.60055728]
[1730651592526,0.00364,68286.0,68285.0,0.60055728]
[1730651593015,0.00364,68286.0,68285.0,0.59855728]
[1730651593206,0.00264,68286.0,68285.0,0.47994204]
[1730651593453,0.00364,68286.0,68285.0,0.47494204]
[1730651593682,0.00264,68286.0,68285.0,0.47494204]
[1730651593892,0.00164,68286.0,68285.0,0.40224204]
[1730651594104,0.00264,68286.0,68285.0,0.39724204]
[1730651594338,0.00364,68286.0,68285.0,0.40224204]
[1730651594769,0.00164,68286.0,68285.0,0.40224204]
[1730651594977,0.00164,68286.0,68285.0,0.39224204]
[1730651595190,0.00364,68286.0,68285.0,0.39224204]
[1730651595605,0.00264,68286.0,68285.0,0.39724204]
[1730651596676,0.00264,68286.0,68285.0,0.39224204]
[1730651596887,0.00780005,68286.0,68285.0,0.146445]
[1730651597095,0.00880005,68286.0,68285.0,0.146445]
[1730651597524,0.03667704,68286.0,68285.0,0.146445]
[1730651598036,0.03667705,68286.0,68285.0,0.146445]
[1730651598223,0.00880006,68286.0,68285.0,0.146445]
[1730651600583,0.00880006,68286.0,68272.0,0.146472]
[1730651600584,0.146457,68280.0,68272.0,0.146472]
[1730651600806,0.14646,68278.0,68270.0,0.292954]
[1730651601021,0.15162306,68277.0,68270.0,0.292954]
[1730651601235,0.0229018,68279.0,68265.0,0.297975]
[1730651601236,0.00516006,68276.0,68267.0,0.005]
[1730651601455,0.03209749,68275.0,68268.0,0.146481]
[1730651601679,0.00509466,68274.0,68271.0,0.146474]
[1730651601915,0.00509466,68273.0,68270.0,0.146477]
[1730651602146,0.00509466,68272.0,68271.0,0.146473]
[1730651602375,0.00509466,68272.0,68267.0,0.43876304]
[1730651602589,0.146477,68270.0,68264.0,0.000819]
[1730651602806,0.00509466,68269.0,68267.0,0.146482]
[1730651603064,0.292937,68274.0,68264.0,0.000819]
[1730651603292,0.00509659,68273.0,68264.0,0.000819]
[1730651603527,0.292937,68274.0,68264.0,0.000819]
[1730651603528,0.29295,68271.0,68264.0,0.000819]
[1730651603754,0.29805059,68270.0,68264.0,0.000819]
[1730651603974,0.28305443,68272.0,68264.0,0.000819]
[1730651603975,0.1275,68268.0,68264.0,0.000819]
[1730651604188,0.146487,68265.0,68264.0,0.000819]
[1730651604412,0.15973741,68265.0,68264.0,0.000819]
[1730651605062,0.146487,68265.0,68264.0,0.000819]
[1730651605286,0.55336293,68265.0,68264.0,0.000819]
[1730651605499,0.47267118,68265.0,68264.0,0.000819]
[1730651606363,0.48667118,68265.0,68264.0,0.000819]
[1730651606569,0.48167118,68265.0,68264.0,0.000819]
[1730651606772,0.49567118,68265.0,68264.0,0.000819]
[1730651607379,0.35652956,68265.0,68264.0,0.000819]
[1730651607598,0.34252956,68265.0,68264.0,0.000819]
[1730651608017,0.35652956,68265.0,68264.0,0.000819]
[1730651608447,0.32850807,68265.0,68264.0,0.000819]
[1730651608667,0.34250807,68265.0,68264.0,0.000819]
[1730651608862,0.35650807,68265.0,68264.0,0.000819]
[1730651609470,0.32850807,68265.0,68264.0,0.000819]
[1730651609689,0.16871103,68265.0,68264.0,0.000819]
[1730651609897,0.18271103,68265.0,68264.0,0.000819]
[1730651610102,0.27092593,68265.0,68264.0,0.000819]
[1730651610949,0.25692593,68265.0,68264.0,0.000819]
[1730651611152,0.26592593,68265.0,68264.0,0.000819]
[1730651611370,0.29392593,68265.0,68264.0,0.000819]
[1730651611543,0.27992593,68265.0,68264.0,0.000819]
[1730651611952,0.43072297,68265.0,68264.0,0.000819]
[1730651612158,0.41672297,68265.0,68264.0,0.000819]
[1730651612372,0.79114619,68265.0,68264.0,0.000819]
[1730651612584,0.85024619,68265.0,68264.0,0.000819]
[1730651612791,0.82224619,68265.0,68264.0,0.000819]
[1730651613197,0.83624619,68265.0,68264.0,0.000819]
[1730651613833,0.279502,68258.0,68251.0,0.0088907]
[1730651614042,0.5532852,68258.0,68251.0,0.0088907]
[1730651614245,0.56142307,68258.0,68251.0,0.0088907]
[1730651614465,0.56342307,68258.0,68251.0,0.0088907]
[1730651614877,0.56142307,68258.0,68251.0,0.0088907]
[1730651615089,0.70566308,68258.0,68251.0,0.0088907]
[1730651615296,0.69243905,68258.0,68251.0,0.0088907]
[1730651615504,0.71962775,68258.0,68251.0,0.0088907]
[1730651615718,0.73562118,68258.0,68251.0,0.0088907]
[1730651615933,0.72162118,68258.0,68251.0,0.0088907]
[1730651616145,0.58003822,68252.0,68251.0,0.0088907]
[1730651616352,0.58003822,68252.0,68224.0,0.146665]
[1730651616353,0.45715822,68243.0,68231.0,4.494e-05]
[1730651616560,0.45715822,68243.0,68238.0,0.21983337]
[1730651616561,0.73396734,68243.0,68238.0,0.21983337]
[1730651616771,0.73903739,68243.0,68231.0,4.494e-05]
[1730651616974,0.87155273,68243.0,68231.0,4.494e-05]
[1730651617394,0.87155273,68243.0,68224.0,9e-05]
[1730651618493,0.88555273,68243.0,68224.0,9e-05]
[1730651618930,0.58441417,68243.0,68224.0,0.146664]
[1730651619141,0.58939077,68243.0,68224.0,9e-05]
[1730651619360,0.59748854,68243.0,68224.0,9e-05]
[1730651619580,0.58939085,68243.0,68224.0,9e-05]
[1730651619786,0.59445191,68243.0,68224.0,9e-05]
[1730651620001,0.74027765,68243.0,68224.0,9e-05]
[1730651620213,0.91790087,68243.0,68224.0,9e-05]
[1730651620423,0.47509622,68225.0,68224.0,9e-05]
[1730651620647,0.62089326,68225.0,68224.0,0.21992337]
[1730651620912,0.71307806,68225.0,68224.0,9e-05]
[1730651621123,0.71107806,68225.0,68224.0,9e-05]
[1730651621553,0.63405414,68225.0,68224.0,9e-05]
[1730651621979,0.66205414,68225.0,68224.0,9e-05]
[1730651622395,0.29663388,68225.0,68224.0,9e-05]
[1730651623038,0.283473,68225.0,68224.0,9e-05]
[1730651623244,0.29661707,68225.0,68224.0,9e-05]
[1730651623498,0.30540321,68225.0,68224.0,9e-05]
[1730651623710,0.29661707,68225.0,68224.0,9e-05]
[1730651623914,0.18771707,68225.0,68224.0,9e-05]
[1730651624122,0.17371707,68225.0,68224.0,9e-05]
[1730651624535,0.18771707,68225.0,68224.0,9e-05]
[1730651624788,0.04114407,68225.0,68224.0,0.146665]
[1730651624989,0.03305541,68225.0,68224.0,9e-05]
[1730651625199,0.05182672,68225.0,68224.0,9e-05]
[1730651625398,0.17962841,68225.0,68224.0,9e-05]
[1730651625954,0.03305541,68225.0,68224.0,9e-05]
[1730651626781,0.00505541,68225.0,68224.0,0.29246204]
[1730651627126,0.00505541,68225.0,68224.0,9e-05]
[1730651627127,0.028,68225.0,68224.0,9e-05]
[1730651627423,0.1904195,68225.0,68224.0,9e-05]
[1730651627556,0.1764195,68225.0,68224.0,9e-05]
[1730651627998,0.1874195,68225.0,68224.0,9e-05]
[1730651629523,0.19552518,68225.0,68224.0,9e-05]
[1730651629740,0.04895218,68225.0,68224.0,9e-05]
[1730651631597,0.02416884,68225.0,68224.0,0.000909]
[1730651631805,0.17074184,68225.0,68224.0,0.000909]
[1730651632006,0.02416884,68225.0,68224.0,0.000909]
[1730651633905,0.17074184,68225.0,68224.0,0.000909]
[1730651634545,0.17079582,68225.0,68224.0,0.000909]
[1730651635398,0.23917214,68225.0,68224.0,0.000909]
[1730651636898,0.17079582,68225.0,68224.0,0.000909]
[1730651638393,0.157573,68225.0,68224.0,0.000909]
[1730651638641,0.17080669,68225.0,68224.0,0.000909]
[1730651638856,0.157573,68225.0,68224.0,0.000909]
[1730651639083,0.17081163,68225.0,68224.0,0.000909]
[1730651639295,0.28045112,68225.0,68224.0,0.000909]
[1730651639737,0.27445112,68225.0,68224.0,0.000909]
[1730651639957,0.28045112,68225.0,68224.0,0.000909]
[1730651640165,0.27545112,68225.0,68224.0,0.000909]
[1730651640375,0.28645112,68225.0,68224.0,0.000909]
[1730651640575,0.28045112,68225.0,68224.0,0.000909]
[1730651640774,0.29145112,68225.0,68224.0,0.000909]
[1730651641185,0.27821249,68225.0,68224.0,0.000909]
[1730651641394,0.29146314,68225.0,68224.0,0.000909]
[1730651642464,0.29146314,68225.0,68217.0,0.0088907]
[1730651642465,0.146585,68220.0,68217.0,0.0088907]
[1730651642682,0.01325065,68219.0,68217.0,0.1554797]
[1730651642883,0.01325065,68218.0,68217.0,0.0088907]
[1730651643543,0.01325065,68218.0,68217.0,0.1554817]
[1730651643754,0.01325065,68218.0,68217.0,0.0088907]
[1730651644008,0.16483865,68218.0,68217.0,0.0088907]
[1730651644436,0.26193845,68218.0,68217.0,0.0088907]
[1730651644651,0.26193845,68218.0,68217.0,0.0097097]
[1730651644652,0.38603845,68218.0,68217.0,0.0097097]
[1730651644865,0.3727878,68218.0,68217.0,0.0097097]
[1730651645099,0.45470563,68218.0,68217.0,0.0097097]
[1730651645783,0.146625,68201.0,68200.0,0.21983337]
[1730651646007,0.41266094,68217.0,68200.0,0.21983337]
[1730651646232,0.293226,68207.0,68197.0,0.293267]
[1730651646445,0.146621,68203.0,68199.0,0.146629]
[1730651646652,0.00795163,68202.0,68199.0,0.29242604]
[1730651646869,0.00496976,68201.0,68199.0,0.29242604]
[1730651647087,0.00496976,68201.0,68200.0,0.146627]
[1730651647088,0.005,68201.0,68200.0,0.146627]
[1730651647298,0.0179186,68201.0,68200.0,0.146627]
[1730651647563,0.0179186,68201.0,68196.0,0.146635]
[1730651647564,0.0604033,68201.0,68196.0,0.146635]
[1730651647782,0.0129186,68200.0,68197.0,0.146633]
[1730651647988,0.0129186,68199.0,68197.0,0.146634]
[1730651648193,0.06304573,68198.0,68197.0,0.146634]
[1730651648610,0.05012713,68198.0,68197.0,0.146634]
[1730651648843,0.002,68202.0,68197.0,0.36563041]
[1730651649064,0.002,68202.0,68201.0,0.52190098]
[1730651649284,0.21983337,68215.0,68214.0,0.146597]
[1730651649502,0.21983337,68215.0,68214.0,0.29239404]
[1730651649745,0.22479989,68215.0,68214.0,0.29239404]
[1730651649969,0.01291296,68215.0,68214.0,0.29239404]
[1730651650665,0.01291296,68215.0,68202.0,0.00707346]
[1730651650666,0.0459,68214.0,68202.0,0.00707346]
[1730651650868,0.0459,68214.0,68191.0,0.00504499]
[1730651650869,0.293203,68212.0,68191.0,0.00504499]
[1730651651077,0.05863944,68211.0,68196.0,0.21983337]
[1730651651287,0.05863944,68211.0,68191.0,0.00504499]
[1730651651288,0.146633,68198.0,68191.0,0.005]
[1730651651495,0.01291296,68197.0,68191.0,0.151646]
[1730651651705,0.01291296,68196.0,68192.0,0.293288]
[1730651651924,0.01291296,68196.0,68195.0,0.147467]
[1730651652369,0.146626,68201.0,68195.0,0.147467]
[1730651652636,0.00794504,68196.0,68195.0,0.147467]
[1730651652881,0.00496565,68196.0,68195.0,0.147467]
[1730651653867,0.00496565,68196.0,68195.0,0.29826404]
[1730651654595,0.00496565,68196.0,68195.0,0.30326404]
[1730651655106,0.293183,68217.0,68195.0,0.30326404]
[1730651655107,0.21983337,68209.0,68208.0,0.14661]
[1730651655361,0.21983337,68216.0,68215.0,0.146595]
[1730651655596,0.22479654,68216.0,68215.0,0.146595]
[1730651655840,0.02694651,68216.0,68215.0,0.146595]
[1730651656067,0.02694651,68216.0,68210.0,0.293212]
[1730651656068,0.01290422,68216.0,68210.0,0.293212]
[1730651656271,0.21983337,68223.0,68206.0,0.146613]
[1730651656272,0.146604,68211.0,68206.0,0.146613]
[1730651656505,0.14661,68209.0,68203.0,0.14662]
[1730651656740,0.01290422,68210.0,68203.0,0.14662]
[1730651656741,0.05817644,68208.0,68203.0,0.14662]
[1730651657000,0.01290422,68207.0,68204.0,0.146617]
[1730651657193,0.01290422,68207.0,68202.0,0.293246]
[1730651657444,0.01290422,68206.0,68202.0,0.14579704]
[1730651657655,0.01290422,68205.0,68204.0,0.146618]
[1730651658119,0.01290422,68205.0,68204.0,0.29741504]
[1730651658363,0.00496316,68205.0,68204.0,0.29741504]
[1730651658642,0.417952,68224.0,68204.0,0.29741504]
[1730651658643,0.21983337,68230.0,68213.0,0.005]
[1730651658873,0.21983337,68214.0,68213.0,0.005]
[1730651659148,0.29313,68229.0,68213.0,0.15079704]
[1730651659396,0.21983337,68230.0,68215.0,0.0808]
[1730651659617,0.21983337,68229.0,68224.0,0.01]
[1730651660035,0.0753,68243.0,68224.0,0.15579704]
[1730651660036,0.0066017,68225.0,68224.0,0.15579704]
[1730651660244,0.001638,68225.0,68224.0,0.25872786]
[1730651660464,0.36634537,68254.0,68236.0,0.005]
[1730651660465,0.00496058,68237.0,68236.0,0.005]
[1730651660668,0.00794077,68246.0,68238.0,0.005]
[1730651660871,0.00794077,68245.0,68238.0,0.15079704]
[1730651661088,0.00794077,68246.0,68238.0,0.15079704]
[1730651661292,0.0079371,68252.0,68239.0,0.14579704]
[1730651661501,0.00495706,68246.0,68239.0,0.14579704]
[1730651661715,0.00495706,68245.0,68241.0,0.146539]
[1730651661918,0.00793129,68253.0,68241.0,0.29733604]
[1730651662339,0.0049571,68252.0,68241.0,0.40233604]
[1730651662757,0.21983337,68253.0,68241.0,0.40233604]
[1730651663222,0.21983337,68257.0,68241.0,0.41146885]
[1730651663445,0.21983337,68263.0,68262.0,0.156494]
[1730651663661,0.21983337,68263.0,68262.0,0.25942328]
[1730651663879,0.21983337,68279.0,68264.0,0.15149]
[1730651664104,0.21983337,68279.0,68264.0,0.25649]
[1730651665170,0.21983337,68279.0,68264.0,0.25849]
[1730651665395,0.21983337,68279.0,68264.0,0.25649]
[1730651665628,0.21983337,68279.0,68264.0,0.40228704]
[1730651665870,0.21983337,68279.0,68264.0,0.58212126]
[1730651666335,0.002638,68265.0,68264.0,0.58312126]
[1730651666540,0.003638,68265.0,68264.0,0.58812126]
[1730651667182,0.003638,68265.0,68264.0,0.61832839]
[1730651667395,0.003638,68265.0,68264.0,0.65121151]
[1730651668025,0.21983337,68279.0,68278.0,0.25646]
[1730651668268,0.21983337,68279.0,68278.0,0.58209126]
[1730651668517,0.20310081,68279.0,68278.0,0.58209126]
[1730651668713,0.00164,68286.0,68285.0,0.156445]
[1730651668926,0.00164,68286.0,68285.0,0.40224204]
[1730651669153,0.00164,68286.0,68285.0,0.39724204]
[1730651669813,0.00164,68286.0,68285.0,0.40224204]
[1730651670012,0.00164,68286.0,68285.0,0.39724204]
[1730651670219,0.00164,68286.0,68285.0,0.29224204]
[1730651670890,0.00164,68286.0,68285.0,0.15479704]
[1730651670891,0.00264,68286.0,68285.0,0.15479704]
[1730651671113,0.00264,68286.0,68276.0,0.21983337]
[1730651671114,0.12644,68286.0,68269.0,0.21983337]
[1730651671318,0.0419314,68285.0,68277.0,0.21983337]
[1730651671541,0.21983337,68285.0,68269.0,0.21983337]
[1730651671768,0.146471,68273.0,68269.0,0.21983337]
[1730651672207,0.292894,68284.0,68270.0,0.146476]
[1730651672440,0.292894,68284.0,68271.0,0.21983337]
[1730651672648,0.292894,68284.0,68271.0,0.14579704]
[1730651672649,0.21983337,68276.0,68271.0,0.14579704]
[1730651672852,0.146461,68278.0,68271.0,0.29227004]
[1730651673069,0.146458,68279.0,68273.0,0.14647]
[1730651673277,0.14646,68278.0,68271.0,0.29227104]
[1730651673489,0.292911,68280.0,68269.0,0.001]
[1730651673706,0.146464,68276.0,68271.0,0.004]
[1730651674121,0.146464,68276.0,68270.0,0.146476]
[1730651674404,0.146472,68273.0,68269.0,0.001]
[1730651674614,0.146474,68272.0,68269.0,0.001]
[1730651674844,0.292907,68281.0,68270.0,0.21983337]
[1730651675082,0.21983337,68283.0,68271.0,0.00392931]
[1730651675316,0.21983337,68283.0,68279.0,0.146457]
[1730651675577,0.21983337,68283.0,68272.0,0.14579704]
[1730651675811,0.12644,68286.0,68273.0,0.21983337]
[1730651676055,0.12644,68286.0,68273.0,0.22276246]
[1730651676321,0.001,68276.0,68275.0,0.146466]
[1730651676563,0.146451,68283.0,68277.0,0.146461]
[1730651676800,0.160451,68283.0,68279.0,0.002]
[1730651677025,0.160451,68283.0,68279.0,0.001]
[1730651677231,0.146452,68282.0,68279.0,0.001]
[1730651677447,0.160449,68283.0,68279.0,0.001]
[1730651677666,0.005,68283.0,68279.0,0.001]
[1730651677897,0.29289,68285.0,68278.0,0.146458]
[1730651678108,0.146468,68274.0,68273.0,0.001]
[1730651678736,0.146479,68269.0,68268.0,0.21983337]
[1730651678944,0.146479,68269.0,68261.0,0.21983337]
[1730651678945,0.292932,68275.0,68261.0,0.21983337]
[1730651679147,0.146478,68270.0,68262.0,0.14579704]
[1730651679359,0.02035856,68280.0,68262.0,0.14579704]
[1730651679360,0.292928,68276.0,68262.0,0.14579704]
[1730651679558,0.146482,68268.0,68267.0,0.03]
[1730651680204,0.146479,68269.0,68267.0,0.03]
[1730651680826,0.007,68268.0,68267.0,0.031]
[1730651682101,0.146479,68269.0,68267.0,0.03]
[1730651682303,0.146481,68268.0,68267.0,0.031]
[1730651682823,0.154481,68268.0,68267.0,0.031]
[1730651683148,0.015,68268.0,68267.0,0.032]
[1730651683352,0.008,68268.0,68267.0,0.031]
[1730651683552,0.016,68268.0,68267.0,0.032]
[1730651683955,0.008,68268.0,68267.0,0.031]
[1730651684207,0.146478,68270.0,68267.0,0.03]
[1730651684578,0.008,68268.0,68267.0,0.03]
[1730651685037,0.146478,68270.0,68267.0,0.03]
[1730651685209,0.009,68268.0,68267.0,0.031]
[1730651685536,0.009,68268.0,68267.0,0.177483]
[1730651687126,0.009,68268.0,68267.0,0.32328004]
[1730651687959,0.019,68268.0,68267.0,0.32428004]
[1730651688392,0.02395154,68268.0,68267.0,0.32428004]
[1730651688602,0.02395154,68268.0,68267.0,0.032]
[1730651688798,0.25263254,68268.0,68267.0,0.032]
[1730651689003,0.10615154,68268.0,68267.0,0.032]
[1730651689469,0.10615202,68268.0,68267.0,0.032]
[1730651689638,0.25263302,68268.0,68267.0,0.032]
[1730651690421,0.34111692,68268.0,68267.0,0.032]
[1730651690623,0.25263302,68268.0,68267.0,0.032]
[1730651691730,0.10615202,68268.0,68267.0,0.032]
[1730651691938,0.02395202,68268.0,68267.0,0.032]
[1730651692570,0.02395202,68268.0,68267.0,0.17779704]
[1730651692883,0.019,68268.0,68267.0,0.17779704]
[1730651693118,0.019,68268.0,68267.0,0.032]
[1730651693397,0.17044555,68268.0,68267.0,0.032]
[1730651693635,0.17044555,68268.0,68267.0,0.032819]
[1730651694467,0.001638,68269.0,68267.0,0.032819]
[1730651694712,0.146481,68268.0,68267.0,0.032819]
[1730651695149,0.146481,68268.0,68267.0,0.031819]
[1730651695374,0.146481,68268.0,68267.0,0.030819]
[1730651695600,0.156481,68268.0,68267.0,0.030819]
[1730651695817,0.170481,68268.0,68267.0,0.031819]
[1730651697008,0.156481,68268.0,68267.0,0.030819]
[1730651697438,0.156481,68268.0,68267.0,0.031819]
[1730651697439,0.165481,68268.0,68267.0,0.031819]
[1730651700147,0.3692829,68268.0,68267.0,0.031819]
[1730651700330,0.54807994,68268.0,68267.0,0.031819]
[1730651700464,0.146526,68247.0,68246.0,0.21983337]
[1730651700706,0.228726,68247.0,68246.0,0.21983337]
[1730651700916,0.275026,68247.0,68246.0,0.21983337]
[1730651701153,0.146534,68244.0,68239.0,0.21983337]
[1730651701553,0.0822,68254.0,68241.0,0.293078]
[1730651701805,0.001,68247.0,68244.0,0.293066]
[1730651702006,0.30203337,68261.0,68245.0,0.36856067]
[1730651702216,0.30203337,68261.0,68245.0,0.14579704]
[1730651702384,0.30203337,68261.0,68246.0,0.005]
[1730651702603,0.146501,68259.0,68247.0,0.14579704]
[1730651702870,0.146518,68251.0,68245.0,0.146529]
[1730651703182,0.21983337,68261.0,68247.0,4e-05]
[1730651703183,0.146523,68249.0,68247.0,4e-05]
[1730651703599,0.293038,68251.0,68247.0,4e-05]
[1730651703822,0.146524,68248.0,68247.0,4e-05]
[1730651705067,0.007,68248.0,68247.0,4e-05]
[1730651705267,0.153524,68248.0,68247.0,4e-05]
[1730651705469,0.161524,68248.0,68247.0,0.00104]
[1730651706098,0.21260542,68248.0,68247.0,0.00104]
[1730651706750,0.21756973,68248.0,68247.0,0.00104]
[1730651706957,0.16648831,68248.0,68247.0,0.00104]
[1730651707165,0.01996431,68248.0,68247.0,0.00104]
[1730651707619,0.015,68248.0,68247.0,0.147566]
[1730651708474,0.01996502,68248.0,68247.0,0.147566]
[1730651710404,0.18979839,68254.0,68247.0,0.00104]
[1730651710613,0.18979839,68254.0,68248.0,0.146524]
[1730651710813,0.146514,68253.0,68247.0,0.294093]
[1730651711046,0.146514,68253.0,68249.0,0.146521]
[1730651711251,0.146514,68253.0,68248.0,0.146523]
[1730651711499,0.146516,68252.0,68247.0,0.147566]
[1730651711717,0.146516,68252.0,68248.0,0.146524]
[1730651712904,0.159516,68252.0,68248.0,0.146524]
[1730651713143,0.159516,68252.0,68247.0,0.00104]
[1730651713144,0.228324,68248.0,68247.0,4e-05]
[1730651713402,0.228324,68248.0,68247.0,0.00104]
[1730651713795,0.228324,68248.0,68247.0,4e-05]
[1730651715002,0.239324,68248.0,68247.0,0.00204]
[1730651715408,0.0818,68247.0,68220.0,0.04299205]
[1730651715638,0.028,68221.0,68219.0,0.21983337]
[1730651715844,0.156584,68220.0,68219.0,0.21983337]
[1730651715997,0.146593,68216.0,68215.0,0.000819]
[1730651718144,0.160593,68216.0,68215.0,0.001819]
[1730651718355,0.174593,68216.0,68215.0,0.002819]
[1730651720496,0.56210064,68216.0,68215.0,0.002819]
[1730651720711,0.294816,68205.0,68204.0,0.000829]
[1730651720959,0.44061304,68205.0,68204.0,0.000829]
[1730651722270,0.45461304,68205.0,68204.0,0.000829]
[1730651722493,0.285816,68205.0,68204.0,0.000829]
[1730651722714,0.160616,68205.0,68204.0,0.000829]
[1730651722918,0.014,68205.0,68204.0,0.000829]
[1730651723132,0.160616,68205.0,68204.0,0.000829]
[1730651723537,0.174616,68205.0,68204.0,0.000829]
[1730651724856,0.2507217,68205.0,68204.0,0.000829]
[1730651725750,0.41951874,68205.0,68204.0,0.000829]
[1730651726671,0.40551874,68205.0,68204.0,0.000829]
[1730651727099,0.41951874,68205.0,68204.0,0.000829]
[1730651727534,0.40551874,68205.0,68204.0,0.000829]
[1730651727976,0.41951874,68205.0,68204.0,0.000829]
[1730651728391,0.34341304,68205.0,68204.0,0.000829]
[1730651729466,0.34821247,68205.0,68204.0,0.000829]
[1730651731078,0.34821247,68205.0,68169.0,0.0006]
[1730651731079,0.023,68178.0,68169.0,0.0006]
[1730651731289,0.274689,68171.0,68170.0,0.00087399]
[1730651731494,0.274729,68171.0,68170.0,0.00087399]
[1730651731697,0.169729,68171.0,68170.0,0.00087399]
[1730651731903,4e-05,68171.0,68170.0,0.00087399]
[1730651732125,0.146729,68171.0,68170.0,0.00087399]
[1730651732341,4e-05,68171.0,68170.0,0.000829]
[1730651732905,0.01404,68171.0,68170.0,0.147521]
[1730651733085,0.01404,68171.0,68170.0,0.14579704]
[1730651733299,0.01404,68171.0,68170.0,0.29748904]
[1730651733500,0.01404,68171.0,68170.0,0.39748904]
[1730651733758,0.01404,68171.0,68170.0,0.40248904]
[1730651733924,0.01404,68171.0,68170.0,0.40448904]
[1730651734143,4e-05,68171.0,68170.0,0.40448904]
[1730651734528,0.02104,68171.0,68170.0,0.40248904]
[1730651734725,0.00704,68171.0,68170.0,0.40248904]
[1730651734936,4e-05,68171.0,68170.0,0.40448904]
[1730651735139,0.00104,68171.0,68169.0,0.0006]
[1730651735392,1.02639935,68170.0,68169.0,0.0006]
[1730651735554,1.15852128,68170.0,68169.0,0.0006]
[1730651735755,0.146732,68170.0,68169.0,0.0006]
[1730651736161,4e-05,68170.0,68169.0,0.0006]
[1730651737732,0.00604,68170.0,68169.0,0.0006]
[1730651737910,0.00604,68170.0,68169.0,0.147294]